bitfinex/quotes_BTCUSD_20241014
["timestamp","ask_amount","ask_price","bid_price","bid_amount"]
[1728895104568,0.001,64581.0,64580.0,0.310692]
[1728895104805,0.001,64581.0,64580.0,0.465538]
[1728895105035,0.16122401,64588.0,64580.0,0.309692]
[1728895105270,0.154831,64587.0,64584.0,0.001]
[1728895105506,0.154834,64585.0,64584.0,0.001]
[1728895105742,0.5924981,64585.0,64584.0,0.001]
[1728895105979,0.5924981,64585.0,64569.0,0.000822]
[1728895105980,0.15487,64570.0,64569.0,0.000822]
[1728895106469,0.31609401,64570.0,64569.0,0.000822]
[1728895108429,0.31609401,64570.0,64569.0,0.001822]
[1728895109143,0.33909401,64570.0,64569.0,0.000822]
[1728895109622,0.34309401,64570.0,64569.0,0.000822]
[1728895110100,0.34290717,64570.0,64569.0,0.000822]
[1728895110332,0.34590717,64570.0,64569.0,0.000822]
[1728895110563,0.34606003,64570.0,64569.0,0.000822]
[1728895110789,0.44206003,64570.0,64569.0,0.000822]
[1728895111065,0.43906003,64570.0,64569.0,0.000822]
[1728895111304,0.44990717,64570.0,64569.0,0.000822]
[1728895111530,0.66977127,64570.0,64569.0,0.000822]
[1728895111774,0.1735,64569.0,64550.0,0.0001]
[1728895112033,0.75380411,64551.0,64550.0,0.0001]
[1728895112271,0.24299008,64551.0,64550.0,0.0001]
[1728895112511,0.24314294,64551.0,64550.0,0.0001]
[1728895112743,0.38415418,64551.0,64550.0,0.0001]
[1728895112974,0.54537819,64551.0,64550.0,0.0001]
[1728895113687,0.77733396,64551.0,64550.0,0.0001]
[1728895113923,0.54537819,64551.0,64550.0,0.0001]
[1728895114390,0.55437819,64551.0,64550.0,0.0001]
[1728895114882,0.28422401,64551.0,64550.0,0.0001]
[1728895115120,0.43914001,64551.0,64550.0,0.0001]
[1728895115358,0.45114001,64551.0,64550.0,0.01027864]
[1728895115601,0.46314001,64551.0,64550.0,0.01027864]
[1728895115990,0.46314001,64551.0,64550.0,0.0001]
[1728895115995,0.45114001,64551.0,64550.0,0.0001]
[1728895116192,0.46314001,64551.0,64550.0,0.0001]
[1728895116770,0.45114001,64551.0,64550.0,0.0001]
[1728895117208,0.46514001,64551.0,64550.0,0.0001]
[1728895117476,0.45114001,64551.0,64550.0,0.0001]
[1728895117698,0.44414001,64551.0,64550.0,0.0001]
[1728895117909,0.45014001,64551.0,64550.0,0.0001]
[1728895123117,0.011,64551.0,64550.0,0.155018]
[1728895123333,0.011,64551.0,64550.0,0.0001]
[1728895123334,0.16122401,64551.0,64550.0,0.0001]
[1728895123622,0.16122401,64551.0,64550.0,0.155018]
[1728895123843,0.31614001,64551.0,64550.0,0.0102943]
[1728895124076,0.16122401,64551.0,64550.0,0.0001]
[1728895124294,0.16222401,64551.0,64550.0,0.0001]
[1728895124529,0.16222401,64551.0,64550.0,0.0011]
[1728895124756,0.16222401,64551.0,64550.0,0.0112943]
[1728895124757,0.16122401,64551.0,64550.0,0.0112943]
[1728895124980,0.16222401,64551.0,64550.0,0.0001]
[1728895125196,0.16322401,64551.0,64550.0,0.001923]
[1728895125424,0.18622401,64551.0,64550.0,0.001923]
[1728895125652,0.18622401,64551.0,64550.0,0.1670353]
[1728895125653,0.002,64551.0,64550.0,0.1670353]
[1728895128170,0.002,64551.0,64550.0,0.2447353]
[1728895130451,0.002,64551.0,64550.0,0.0898173]
[1728895131636,0.34114001,64551.0,64550.0,0.0121173]
[1728895131850,0.34114001,64551.0,64550.0,0.001923]
[1728895133033,0.44014001,64551.0,64550.0,0.000923]
[1728895133257,0.44314001,64551.0,64550.0,0.000923]
[1728895133476,0.52364001,64551.0,64550.0,0.000923]
[1728895133707,0.44314001,64551.0,64550.0,0.000923]
[1728895134171,0.44214001,64551.0,64550.0,0.000923]
[1728895134390,0.43914001,64551.0,64550.0,0.000923]
[1728895134605,0.44014001,64551.0,64550.0,0.000923]
[1728895134828,0.44014001,64551.0,64550.0,0.001923]
[1728895134829,0.44514001,64551.0,64550.0,0.001923]
[1728895135262,0.44914001,64551.0,64550.0,0.001923]
[1728895138881,0.45093887,64551.0,64550.0,0.001923]
[1728895140371,0.45078601,64551.0,64550.0,0.001923]
[1728895140814,0.32778601,64551.0,64550.0,0.001923]
[1728895141036,0.17287001,64551.0,64550.0,0.001923]
[1728895141261,0.17287001,64551.0,64550.0,0.14354083]
[1728895141510,0.17287001,64551.0,64550.0,0.16703222]
[1728895142176,0.011646,64551.0,64550.0,0.30865005]
[1728895142399,0.011646,64551.0,64550.0,0.39935005]
[1728895143763,0.005646,64551.0,64550.0,0.39835005]
[1728895143972,0.001646,64551.0,64550.0,0.39835005]
[1728895144185,0.005646,64551.0,64550.0,0.39835005]
[1728895144406,0.011646,64551.0,64550.0,0.39935005]
[1728895144654,0.007646,64551.0,64550.0,0.39935005]
[1728895144866,0.002646,64551.0,64550.0,0.40335005]
[1728895145540,0.003646,64551.0,64550.0,0.40335005]
[1728895147600,0.003646,64551.0,64550.0,0.26173222]
[1728895147826,0.004646,64551.0,64550.0,0.26773222]
[1728895148517,0.004646,64551.0,64543.0,0.0805]
[1728895148518,0.027982,64529.0,64512.0,0.01532118]
[1728895148762,0.0457,64533.0,64496.0,0.01615753]
[1728895148763,0.183018,64501.0,64496.0,0.01615753]
[1728895148990,0.283018,64501.0,64484.0,0.002]
[1728895149258,0.283018,64501.0,64484.0,0.14361783]
[1728895149259,0.183018,64501.0,64484.0,0.14361783]
[1728895149523,0.183018,64501.0,64480.0,0.3270105]
[1728895149524,0.183018,64501.0,64480.0,0.0168385]
[1728895149742,0.183018,64501.0,64481.0,0.14161783]
[1728895149971,0.183018,64501.0,64480.0,0.23188874]
[1728895150189,0.283018,64501.0,64480.0,0.0168385]
[1728895151356,0.45724201,64501.0,64492.0,0.92950481]
[1728895151839,0.45524201,64501.0,64492.0,0.92950481]
[1728895152082,0.45824201,64501.0,64492.0,0.92950481]
[1728895152318,0.47224201,64501.0,64492.0,0.92950481]
[1728895152792,0.44424201,64501.0,64492.0,0.92950481]
[1728895153021,0.47224201,64501.0,64492.0,0.92950481]
[1728895153246,0.47224201,64501.0,64486.0,0.92950481]
[1728895153479,0.47224201,64501.0,64493.0,0.92950481]
[1728895153716,0.47224201,64501.0,64494.0,0.23255634]
[1728895154189,0.47224201,64501.0,64500.0,0.07476964]
[1728895155411,0.47224201,64501.0,64500.0,0.17196964]
[1728895155629,0.44924201,64501.0,64500.0,0.17196964]
[1728895157014,0.47224201,64501.0,64500.0,0.17196964]
[1728895160837,0.47224201,64501.0,64500.0,0.07476964]
[1728895164032,0.47224201,64501.0,64500.0,0.07559364]
[1728895164250,0.47389001,64501.0,64500.0,0.07559364]
[1728895164466,0.37389001,64501.0,64500.0,0.07559364]
[1728895166713,0.35989001,64501.0,64500.0,0.07559364]
[1728895166960,0.34989001,64501.0,64500.0,0.07559364]
[1728895167214,0.35189001,64501.0,64500.0,0.07559364]
[1728895167444,0.19685401,64501.0,64500.0,0.07559364]
[1728895167678,0.35189001,64501.0,64500.0,0.07559364]
[1728895168121,0.19685401,64501.0,64500.0,0.07559364]
[1728895168604,0.19187201,64501.0,64500.0,0.07559364]
[1728895169047,0.19685401,64501.0,64500.0,0.07559364]
[1728895169273,0.16887201,64501.0,64500.0,0.07559364]
[1728895169513,0.16887201,64501.0,64500.0,0.32943164]
[1728895169515,0.007648,64501.0,64500.0,0.32943164]
[1728895170231,0.003648,64501.0,64500.0,0.32943164]
[1728895170470,0.001648,64501.0,64500.0,0.33043164]
[1728895170923,0.002648,64501.0,64500.0,0.33043164]
[1728895171841,0.003648,64501.0,64500.0,0.33243164]
[1728895172065,0.023,64518.0,64514.0,0.155004]
[1728895172304,0.21505024,64538.0,64516.0,0.155]
[1728895172305,0.16122401,64517.0,64516.0,0.155]
[1728895172786,0.004982,64525.0,64517.0,0.309995]
[1728895173022,0.16122401,64524.0,64522.0,0.154985]
[1728895173251,0.16122401,64524.0,64523.0,0.154983]
[1728895174421,0.004982,64532.0,64523.0,0.0973]
[1728895174640,0.004982,64529.0,64528.0,0.154969]
[1728895174898,0.16122401,64529.0,64528.0,0.154969]
[1728895175591,0.023,64528.0,64525.0,0.309956]
[1728895175814,0.023,64528.0,64523.0,0.0973]
[1728895176276,0.027982,64524.0,64523.0,0.0973]
[1728895176519,0.027982,64524.0,64512.0,0.32385634]
[1728895176520,0.309996,64517.0,64512.0,0.32385634]
[1728895176757,0.178007,64513.0,64512.0,0.32385634]
[1728895176973,0.178029,64504.0,64503.0,0.23255634]
[1728895177196,0.33925301,64504.0,64503.0,0.23255634]
[1728895177601,0.18422401,64504.0,64503.0,0.23255634]
[1728895178068,0.18422401,64504.0,64502.0,0.246333]
[1728895178282,0.16122401,64503.0,64502.0,0.0913]
[1728895178985,0.33925501,64503.0,64502.0,0.0913]
[1728895179681,0.155036,64501.0,64500.0,0.07559364]
[1728895179913,0.33926001,64501.0,64500.0,0.07559364]
[1728895180617,0.18422401,64501.0,64500.0,0.07559364]
[1728895181073,0.33926001,64501.0,64500.0,0.07759364]
[1728895181590,0.33926001,64501.0,64500.0,0.07559364]
[1728895182039,0.18422401,64501.0,64500.0,0.07559364]
[1728895182495,0.16122401,64501.0,64500.0,0.23063164]
[1728895182731,0.16122401,64501.0,64500.0,0.07559364]
[1728895182732,0.18422401,64501.0,64500.0,0.07559364]
[1728895183205,0.33926001,64501.0,64500.0,0.07559364]
[1728895183900,0.18422401,64501.0,64500.0,0.07559364]
[1728895184280,0.33926001,64501.0,64500.0,0.07559364]
[1728895184695,0.18422401,64501.0,64500.0,0.07559364]
[1728895186232,0.18422401,64501.0,64500.0,0.23063164]
[1728895186464,0.18422401,64501.0,64500.0,0.07559364]
[1728895186671,0.18422401,64501.0,64500.0,0.23063164]
[1728895186881,0.18422401,64501.0,64500.0,0.07559364]
[1728895187098,0.18422401,64501.0,64500.0,0.23063164]
[1728895188043,0.18586801,64501.0,64500.0,0.23063164]
[1728895189979,0.19586801,64501.0,64500.0,0.23063164]
[1728895190191,0.19586801,64501.0,64500.0,0.07559364]
[1728895190416,0.20486801,64501.0,64500.0,0.07559364]
[1728895191975,0.020644,64501.0,64500.0,0.23063164]
[1728895193330,0.020644,64501.0,64500.0,0.07559364]
[1728895193567,0.020644,64501.0,64500.0,0.23063164]
[1728895194501,0.020644,64501.0,64500.0,0.07559364]
[1728895194949,0.020644,64501.0,64500.0,0.23063164]
[1728895195610,0.020644,64501.0,64500.0,0.07559364]
[1728895196294,0.020644,64501.0,64500.0,0.23063164]
[1728895196486,0.020644,64501.0,64500.0,0.07559364]
[1728895197623,0.020644,64501.0,64500.0,0.23063164]
[1728895197890,0.020644,64501.0,64500.0,0.07559364]
[1728895198328,0.020644,64501.0,64500.0,0.23063164]
[1728895199395,0.020644,64501.0,64500.0,0.07559364]
[1728895199605,0.020644,64501.0,64500.0,0.23063164]
[1728895200009,0.020644,64501.0,64500.0,0.07559364]
[1728895200215,0.020644,64501.0,64500.0,0.23063164]
[1728895200606,0.020644,64501.0,64500.0,0.30953164]
[1728895201239,0.011644,64501.0,64500.0,0.30953164]
[1728895201456,0.011644,64501.0,64500.0,0.30413164]
[1728895201668,0.001644,64501.0,64500.0,0.30413164]
[1728895202105,0.003644,64501.0,64500.0,0.30413164]
[1728895205224,0.003644,64501.0,64500.0,0.14909364]
[1728895206100,0.003644,64501.0,64500.0,0.30413164]
[1728895206341,0.003644,64501.0,64500.0,0.3157688]
[1728895206591,0.16486801,64501.0,64500.0,0.0818308]
[1728895206801,0.34290401,64501.0,64500.0,0.07019364]
[1728895213591,0.18786801,64501.0,64500.0,0.07019364]
[1728895213824,0.34290401,64501.0,64500.0,0.07019364]
[1728895214500,0.18786801,64501.0,64500.0,0.07019364]
[1728895214749,0.34290401,64501.0,64500.0,0.07019364]
[1728895217911,0.18786801,64501.0,64500.0,0.07019364]
[1728895218136,0.34290401,64501.0,64500.0,0.07019364]
[1728895220206,0.18786801,64501.0,64500.0,0.07019364]
[1728895220428,0.34290401,64501.0,64500.0,0.07019364]
[1728895222549,0.18786801,64501.0,64500.0,0.07019364]
[1728895222768,0.34290401,64501.0,64500.0,0.07019364]
[1728895224089,0.18786801,64501.0,64500.0,0.07019364]
[1728895224317,0.003644,64501.0,64500.0,0.32273164]
[1728895224576,0.003644,64501.0,64500.0,0.41456745]
[1728895225012,0.003644,64501.0,64500.0,0.47972642]
[1728895225246,0.003644,64501.0,64500.0,0.4351852]
[1728895225476,0.004982,64522.0,64517.0,0.0987]
[1728895225712,0.05123732,64527.0,64518.0,0.14178654]
[1728895225934,0.16122401,64526.0,64522.0,0.14178654]
[1728895226425,0.16122401,64526.0,64525.0,0.154978]
[1728895227140,0.001648,64529.0,64522.0,0.14178654]
[1728895227351,0.16122401,64528.0,64526.0,0.154976]
[1728895227569,0.001648,64529.0,64524.0,0.309958]
[1728895227791,0.001648,64529.0,64526.0,0.14178654]
[1728895228020,0.001648,64529.0,64528.0,0.154971]
[1728895228471,0.003648,64529.0,64528.0,0.154971]
[1728895228724,0.001648,64529.0,64528.0,0.154971]
[1728895228944,0.005648,64529.0,64528.0,0.154971]
[1728895229193,0.028648,64529.0,64526.0,0.29676054]
[1728895229403,0.028648,64529.0,64528.0,0.154971]
[1728895230098,0.005648,64529.0,64528.0,0.245971]
[1728895230342,0.008648,64529.0,64528.0,0.327171]
[1728895230586,0.309838,64550.0,64539.0,0.309886]
[1728895230810,0.31614501,64549.0,64545.0,0.15493]
[1728895231031,0.16122401,64549.0,64545.0,0.15493]
[1728895231269,0.16122401,64549.0,64544.0,0.14178654]
[1728895231270,0.16122401,64549.0,64546.0,0.154927]
[1728895232166,0.009,64550.0,64545.0,0.23255634]
[1728895232386,0.009,64550.0,64546.0,0.154926]
[1728895232864,0.31778601,64551.0,64547.0,0.154924]
[1728895232866,0.31778601,64551.0,64545.0,0.38748534]
[1728895233123,0.16287001,64551.0,64546.0,0.309856]
[1728895233377,0.16287001,64551.0,64548.0,0.14178654]
[1728895233378,0.154919,64550.0,64548.0,0.14178654]
[1728895233634,0.007,64549.0,64548.0,0.14178654]
[1728895233894,0.001646,64551.0,64548.0,0.29670954]
[1728895234159,0.008,64549.0,64548.0,0.14178654]
[1728895234639,0.001646,64551.0,64548.0,0.14178654]
[1728895234876,0.001646,64551.0,64550.0,0.154918]
[1728895236824,0.002646,64551.0,64550.0,0.154918]
[1728895237050,0.001646,64551.0,64550.0,0.154918]
[1728895237280,0.002646,64551.0,64550.0,0.159918]
[1728895237523,0.002646,64551.0,64550.0,0.166918]
[1728895237524,0.003646,64551.0,64550.0,0.166918]
[1728895237986,0.003646,64551.0,64550.0,0.012]
[1728895240172,0.003646,64551.0,64550.0,0.166918]
[1728895242126,0.34278601,64551.0,64550.0,0.012]
[1728895242404,0.34776801,64551.0,64550.0,0.012]
[1728895243147,0.34676801,64551.0,64550.0,0.007]
[1728895243386,0.177935,64543.0,64542.0,0.23255634]
[1728895243617,0.023,64543.0,64542.0,0.23255634]
[1728895243855,0.177935,64543.0,64542.0,0.23255634]
[1728895244099,0.023,64543.0,64542.0,0.23255634]
[1728895244375,0.154935,64543.0,64542.0,0.23255634]
[1728895244627,0.023,64542.0,64538.0,0.252546]
[1728895245144,0.023,64542.0,64539.0,0.154945]
[1728895245627,0.023,64542.0,64541.0,0.15494]
[1728895246642,0.004,64543.0,64542.0,0.154937]
[1728895246900,0.023,64549.0,64542.0,0.309874]
[1728895247157,0.023,64547.0,64545.0,0.15493]
[1728895247652,0.023,64547.0,64544.0,0.14178654]
[1728895248148,0.023,64547.0,64545.0,0.154928]
[1728895248395,0.023,64549.0,64546.0,0.154928]
[1728895248625,0.023,64549.0,64544.0,0.14178654]
[1728895248626,0.009,64547.0,64545.0,0.001]
[1728895248861,0.163926,64547.0,64545.0,0.001]
[1728895249323,0.009,64547.0,64545.0,0.001]
[1728895249553,0.163927,64547.0,64545.0,0.001]
[1728895249794,0.33915201,64546.0,64545.0,0.001]
[1728895250265,0.33915201,64546.0,64543.0,0.23255634]
[1728895250266,0.18422401,64546.0,64543.0,0.23255634]
[1728895250525,0.177933,64544.0,64543.0,0.23255634]
[1728895251479,0.177933,64544.0,64538.0,0.252547]
[1728895251480,0.023,64543.0,64538.0,0.0976]
[1728895251724,0.023,64541.0,64538.0,0.252547]
[1728895253166,0.025,64541.0,64538.0,0.252547]
[1728895253435,0.025,64541.0,64540.0,0.154942]
[1728895254091,0.028,64541.0,64540.0,0.154942]
[1728895254561,0.025,64541.0,64540.0,0.154942]
[1728895254783,0.028,64541.0,64540.0,0.154942]
[1728895255008,0.028,64541.0,64538.0,0.0976]
[1728895255229,0.028,64541.0,64540.0,0.154942]
[1728895255451,0.026,64541.0,64540.0,0.154942]
[1728895255913,0.028,64541.0,64540.0,0.154942]
[1728895256137,0.023,64543.0,64540.0,0.154942]
[1728895256361,0.001,64541.0,64540.0,0.154942]
[1728895256575,0.003,64541.0,64539.0,0.154944]
[1728895257246,0.001,64541.0,64539.0,0.154944]
[1728895257956,0.001,64541.0,64538.0,0.0976]
[1728895258188,0.024,64541.0,64538.0,0.252547]
[1728895258413,0.024,64541.0,64539.0,0.154944]
[1728895258641,0.023,64543.0,64538.0,0.0976]
[1728895258860,0.001,64541.0,64540.0,0.464825]
[1728895259322,0.026,64541.0,64540.0,0.464825]
[1728895259839,0.023,64543.0,64542.0,0.154937]
[1728895261168,0.025,64543.0,64542.0,0.154937]
[1728895261639,0.02310635,64543.0,64542.0,0.154937]
[1728895262108,0.02410635,64543.0,64542.0,0.154937]
[1728895262363,0.003,64543.0,64542.0,0.154937]
[1728895263502,0.001644,64547.0,64546.0,0.154928]
[1728895263726,0.024644,64547.0,64546.0,0.154928]
[1728895264175,0.024644,64547.0,64544.0,0.154931]
[1728895264400,0.024644,64547.0,64543.0,0.309869]
[1728895264615,0.024644,64547.0,64543.0,0.154934]
[1728895265306,0.024644,64547.0,64546.0,0.004]
[1728895265540,0.024644,64547.0,64544.0,0.154932]
[1728895265756,0.024644,64547.0,64546.0,0.003]
[1728895266232,0.024644,64547.0,64544.0,0.154932]
[1728895266668,0.024644,64547.0,64546.0,0.004]
[1728895266901,0.179569,64547.0,64546.0,0.004]
[1728895268583,0.179569,64547.0,64544.0,0.003]
[1728895269056,0.024644,64547.0,64544.0,0.004]
[1728895269274,0.024644,64547.0,64546.0,0.003]
[1728895269493,0.179569,64547.0,64546.0,0.003]
[1728895269711,0.179569,64547.0,64546.0,0.007]
[1728895269971,0.179569,64547.0,64543.0,0.154934]
[1728895270187,0.024644,64547.0,64544.0,0.007]
[1728895270405,0.024644,64547.0,64544.0,0.003]
[1728895270623,0.024644,64547.0,64544.0,0.157932]
[1728895270846,0.024644,64547.0,64544.0,0.003]
[1728895271065,0.17957,64547.0,64544.0,0.003]
[1728895271546,0.17957,64547.0,64543.0,0.154934]
[1728895271766,0.17957,64547.0,64546.0,0.003]
[1728895271993,0.024644,64547.0,64546.0,0.003]
[1728895272210,0.024644,64547.0,64544.0,0.154932]
[1728895272434,0.179569,64547.0,64546.0,0.004]
[1728895273013,0.179569,64547.0,64543.0,0.154935]
[1728895273213,0.179569,64547.0,64546.0,0.003]
[1728895274047,0.179569,64547.0,64546.0,0.007]
[1728895274693,0.179569,64547.0,64546.0,0.004]
[1728895275336,0.024644,64547.0,64546.0,0.004]
[1728895275752,0.024644,64547.0,64546.0,0.007]
[1728895275753,0.179569,64547.0,64546.0,0.007]
[1728895275961,0.024644,64547.0,64546.0,0.007]
[1728895276179,0.179569,64547.0,64546.0,0.007]
[1728895277894,0.024644,64547.0,64546.0,0.007]
[1728895278515,0.179569,64547.0,64546.0,0.007]
[1728895278721,0.024644,64547.0,64546.0,0.007]
[1728895278933,0.179569,64547.0,64546.0,0.007]
[1728895280002,0.024644,64547.0,64546.0,0.007]
[1728895280216,0.024644,64547.0,64546.0,0.003]
[1728895280456,0.179569,64547.0,64546.0,0.003]
[1728895280665,0.181569,64547.0,64543.0,0.23255634]
[1728895280898,0.179569,64547.0,64543.0,0.38749134]
[1728895281095,0.182569,64547.0,64543.0,0.38749134]
[1728895281319,0.030644,64547.0,64543.0,0.23255634]
[1728895281529,0.030644,64547.0,64543.0,0.38749134]
[1728895281742,0.030644,64547.0,64543.0,0.23255634]
[1728895281743,0.154928,64546.0,64543.0,0.23255634]
[1728895282825,0.024644,64547.0,64543.0,0.23255634]
[1728895282826,0.027644,64547.0,64543.0,0.23255634]
[1728895283059,0.154929,64546.0,64543.0,0.23255634]
[1728895283491,0.156929,64546.0,64543.0,0.23255634]
[1728895283696,0.154929,64546.0,64543.0,0.23255634]
[1728895283908,0.157929,64546.0,64543.0,0.23337834]
[1728895284135,0.15493,64545.0,64543.0,0.23337834]
[1728895284371,0.003,64546.0,64543.0,0.23337834]
[1728895284859,0.027644,64547.0,64543.0,0.23337834]
[1728895285744,0.154932,64545.0,64543.0,0.23337834]
[1728895285964,0.002,64546.0,64543.0,0.23337834]
[1728895286193,0.311856,64546.0,64543.0,0.23337834]
[1728895286439,0.156931,64545.0,64543.0,0.23337834]
[1728895286895,0.157931,64545.0,64543.0,0.23337834]
[1728895287116,0.157931,64545.0,64543.0,0.000822]
[1728895287348,0.44413901,64544.0,64543.0,0.000822]
[1728895287588,0.64970861,64544.0,64543.0,0.000822]
[1728895287800,0.002,64541.0,64540.0,0.000822]
[1728895288016,0.53504114,64541.0,64540.0,0.000822]
[1728895288236,0.62284114,64541.0,64540.0,0.000822]
[1728895288480,0.282948,64530.0,64527.0,0.23255634]
[1728895288693,0.62596227,64530.0,64527.0,0.23255634]
[1728895288917,0.62596227,64530.0,64508.0,0.30955634]
[1728895288918,0.282975,64519.0,64508.0,0.23255634]
[1728895289140,0.53509414,64519.0,64508.0,0.23255634]
[1728895289361,0.178017,64509.0,64508.0,0.23255634]
[1728895289573,0.34422301,64509.0,64508.0,0.23255634]
[1728895289794,0.178033,64502.0,64501.0,0.33115634]
[1728895290003,0.37672877,64502.0,64501.0,0.33115634]
[1728895290222,0.41045538,64502.0,64501.0,0.33115634]
[1728895290527,0.37672877,64502.0,64501.0,0.0986]
[1728895290921,0.38643519,64502.0,64501.0,0.0986]
[1728895291133,0.37672877,64502.0,64501.0,0.0986]
[1728895291583,0.37672877,64502.0,64500.0,0.06919364]
[1728895291584,0.283018,64501.0,64500.0,0.06919364]
[1728895291806,0.49142019,64501.0,64500.0,0.06919364]
[1728895292235,0.48171377,64501.0,64500.0,0.06919364]
[1728895292448,0.49142243,64501.0,64500.0,0.06919364]
[1728895292893,0.50142243,64501.0,64500.0,0.06919364]
[1728895293108,0.50123556,64501.0,64500.0,0.06919364]
[1728895293386,0.46305514,64501.0,64500.0,0.06919364]
[1728895293585,0.50032217,64501.0,64500.0,0.06919364]
[1728895294214,0.49032217,64501.0,64500.0,0.06919364]
[1728895294419,0.47938861,64501.0,64500.0,0.06919364]
[1728895295046,0.46738861,64501.0,64500.0,0.06919364]
[1728895295251,0.47638861,64501.0,64500.0,0.06919364]
[1728895296070,0.35338861,64501.0,64500.0,0.06919364]
[1728895296298,0.33426001,64501.0,64500.0,0.06919364]
[1728895296931,0.17922401,64501.0,64500.0,0.06919364]
[1728895297452,0.33926001,64501.0,64500.0,0.06919364]
[1728895297674,0.33926001,64501.0,64500.0,0.07119364]
[1728895297914,0.33926001,64501.0,64500.0,0.06919364]
[1728895299180,0.33926001,64501.0,64500.0,0.07219364]
[1728895301351,0.18422401,64501.0,64500.0,0.07219364]
[1728895301579,0.33926001,64501.0,64500.0,0.07219364]
[1728895302058,0.023,64502.0,64500.0,0.07219364]
[1728895302283,0.155013,64511.0,64506.0,0.155022]
[1728895302515,0.16122401,64510.0,64508.0,0.155017]
[1728895302758,0.16122401,64510.0,64507.0,0.16518913]
[1728895302992,0.16122401,64510.0,64508.0,0.16517291]
[1728895303443,0.16122401,64510.0,64508.0,0.01015391]
[1728895303679,0.16122401,64510.0,64509.0,0.155017]
[1728895303930,0.16722401,64510.0,64508.0,0.01015391]
[1728895304155,0.16722401,64510.0,64507.0,0.155019]
[1728895304380,0.023,64509.0,64508.0,0.01015391]
[1728895304597,0.18422401,64509.0,64508.0,0.01015391]
[1728895304819,0.18422401,64509.0,64508.0,0.16517291]
[1728895305039,0.18422401,64509.0,64508.0,0.155019]
[1728895305257,0.012,64510.0,64508.0,0.155019]
[1728895305258,0.023,64510.0,64509.0,0.155017]
[1728895305776,0.006,64510.0,64507.0,0.15502]
[1728895305986,0.006,64510.0,64503.0,0.54261534]
[1728895306213,0.023,64514.0,64508.0,0.01015391]
[1728895306439,0.023,64511.0,64508.0,0.155019]
[1728895306659,0.023,64511.0,64508.0,0.01115391]
[1728895306875,0.023,64511.0,64508.0,0.01015391]
[1728895307321,0.15501,64512.0,64508.0,0.01015391]
[1728895307322,0.023,64512.0,64508.0,0.01015391]
[1728895307552,0.023,64510.0,64508.0,0.01015391]
[1728895307782,0.023,64511.0,64509.0,0.155015]
[1728895307993,0.178012,64511.0,64508.0,0.01015391]
[1728895308219,0.179012,64511.0,64507.0,0.15502]
[1728895308438,0.179012,64511.0,64508.0,0.01015391]
[1728895308647,0.178012,64511.0,64508.0,0.01015391]
[1728895308885,0.179012,64511.0,64508.0,0.01015391]
[1728895309115,0.023,64511.0,64508.0,0.01015391]
[1728895309350,0.024,64511.0,64508.0,0.01015391]
[1728895309623,0.155016,64510.0,64508.0,0.01015391]
[1728895309838,0.155016,64510.0,64506.0,0.155023]
[1728895310076,0.155016,64510.0,64508.0,0.01015391]
[1728895310329,0.025,64511.0,64508.0,0.01015391]
[1728895310554,0.024,64511.0,64508.0,0.16517291]
[1728895310768,0.334027,64511.0,64503.0,0.23255634]
[1728895310985,0.334027,64511.0,64508.0,0.01015391]
[1728895311198,0.155015,64510.0,64503.0,0.23255634]
[1728895311418,0.024,64511.0,64508.0,0.16517291]
[1728895311655,0.001,64511.0,64510.0,0.23255634]
[1728895311878,0.002,64511.0,64510.0,0.155014]
[1728895312099,0.002,64511.0,64510.0,0.245514]
[1728895312547,0.002,64511.0,64510.0,0.55537034]
[1728895312767,0.002,64511.0,64510.0,0.322814]
[1728895313235,0.001,64511.0,64510.0,0.322814]
[1728895313505,0.002,64511.0,64510.0,0.322814]
[1728895313722,0.001,64511.0,64510.0,0.322814]
[1728895313944,0.023,64522.0,64518.0,0.154995]
[1728895314179,0.023,64522.0,64510.0,0.1678]
[1728895314180,0.00479513,64534.0,64524.0,0.309962]
[1728895314408,0.00479513,64534.0,64524.0,0.0774]
[1728895314409,0.16122401,64528.0,64524.0,0.0774]
[1728895315299,0.154978,64526.0,64524.0,0.0774]
[1728895315530,0.154978,64525.0,64524.0,0.0774]
[1728895316717,0.309948,64527.0,64524.0,0.0824]
[1728895316718,0.023,64526.0,64524.0,0.0824]
[1728895316960,0.001,64525.0,64524.0,0.237381]
[1728895317694,0.002,64525.0,64524.0,0.332181]
[1728895318178,0.001,64525.0,64524.0,0.327181]
[1728895319525,0.001,64526.0,64525.0,0.464931]
[1728895319752,0.001644,64529.0,64528.0,0.154971]
[1728895321354,0.001644,64529.0,64528.0,0.155971]
[1728895322008,0.001644,64529.0,64528.0,0.246171]
[1728895322463,0.001644,64529.0,64528.0,0.248171]
[1728895322676,0.001644,64529.0,64528.0,0.246171]
[1728895324008,0.001644,64529.0,64528.0,0.24537587]
[1728895324473,0.003644,64529.0,64528.0,0.25037587]
[1728895326982,0.002644,64529.0,64528.0,0.25037587]
[1728895327214,0.002644,64529.0,64528.0,0.24637587]
[1728895327430,0.003644,64529.0,64528.0,0.25237587]
[1728895327658,0.002644,64529.0,64528.0,0.32967587]
[1728895327891,0.002644,64529.0,64528.0,0.32767587]
[1728895328120,0.003644,64529.0,64528.0,0.33067587]
[1728895328347,0.003644,64529.0,64528.0,0.32867587]
[1728895329493,0.002644,64529.0,64528.0,0.32267587]
[1728895329717,0.002644,64529.0,64528.0,0.336471]
[1728895330376,0.002644,64529.0,64528.0,0.1815]
[1728895330592,0.002644,64529.0,64528.0,0.260171]
[1728895330810,0.002644,64529.0,64528.0,0.1052]
[1728895331491,0.156613,64529.0,64528.0,0.014]
[1728895331684,0.001644,64529.0,64528.0,0.014]
[1728895332581,0.156613,64529.0,64526.0,0.14179791]
[1728895332795,0.157613,64529.0,64528.0,0.013]
[1728895333015,0.34183701,64529.0,64528.0,0.013]
[1728895333229,0.34283701,64529.0,64528.0,0.021]
[1728895333704,0.34283701,64529.0,64528.0,0.013]
[1728895333705,0.34183701,64529.0,64528.0,0.013]